[Event "Lozovatsky Memorial-A 2020"]
[Site "Chelyabinsk"]
[Date "2020.01.19"]
[Round "5.3"]
[White "Salemgareev, Tagir"]
[Black "Radzhabov, Rodion"]
[Result "1-0"]
[ECO "E12"]
[WhiteElo "2458"]
[BlackElo "2381"]
[Annotator "ChessBase"]
[PlyCount "109"]
[EventDate "2020.01.15"]
[EventType "tourn"]
[EventCountry "RUS"]
[SourceTitle "playchess.com"]
[Source "ChessBase"]
[SourceQuality "1"]
[TimeControl "5400+30"]

1. d4 {[%emt 0:03:31]} Nf6 {[%emt 0:00:00]} 2. c4 {[%emt 0:00:04]} e6 {[%emt 0:00:00]} 3. Nf3 {[%emt 0:00:04]} b6 {[%emt 0:00:44]} 4. a3 {[%emt 0:08:33]} Bb7 {[%emt 0:02:32]} 5. Nc3 {[%emt 0:00:06]} Be7 {[%emt 0:00:29]} 6. d5 {[%emt 0:00:13]} O-O {[%emt 0:02:47]} 7. e4 {[%emt 0:00:24]} d6 {[%emt 0:05:17]} 8. Bd3 {[%emt 0:00:37]} exd5 {[%emt 0:06:47]} 9. cxd5 {[%emt 0:07:11]} Nfd7 {[%emt 0:27:25]} 10. O-O {[%emt 0:07:23]} Bf6 {[%emt 0:00:23]} 11. Re1 {[%emt 0:00:32]} Ne5 {[%emt 0:11:56]} 12. Nxe5 {[%emt 0:07:38]} Bxe5 {[%emt 0:00:19]} 13. f4 {[%emt 0:00:11]} Bd4+ {[%emt 0:01:45]} 14. Be3 {[%emt 0:00:15]} Qf6 {[%emt 0:13:22]} 15. Bxd4 {[%emt 0:04:20]} Qxd4+ {[%emt 0:00:11]} 16. Kh1 {[%emt 0:00:05]} Qf2 {[%emt 0:01:11]} 17. Rf1 {[%emt 0:07:17]} Qh4 {[%emt 0:11:32]} 18. Qd2 {[%emt 0:06:14]} Nd7 {[%emt 0:01:23]} 19. Rac1 {[%emt 0:01:20]} a6 {[%emt 0:04:10]} 20. Ne2 {[%emt 0:05:00]} Nc5 {[%emt 0:01:40]} 21. Bc2 {[%emt 0:00:28]} f5 {[%emt 0:02:42]} 22. exf5 {[%emt 0:03:21]} Rae8 {[%emt 0:01:08]} 23. Ng3 {[%emt 0:13:31]} b5 {[%emt 0:03:13]} 24. b4 {[%emt 0:09:50]} Nd7 {[%emt 0:00:04]} 25. Bd1 {[%emt 0:00:08]} Qd8 {[%emt 0:00:52]} 26. Bf3 {[%emt 0:01:01]} Nb6 {[%emt 0:00:18]} 27. Rfe1 {[%emt 0:00:28]} Nc4 {[%emt 0:00:16]} 28. Qd4 {[%emt 0:01:23]} Qf6 {[%emt 0:00:32]} 29. Qxf6 {[%emt 0:00:57]} Rxe1+ {[%emt 0:00:55]} 30. Rxe1 {[%emt 0:00:04]} Rxf6 {[%emt 0:00:03]} 31. Kg1 {[%emt 0:11:25]} Nxa3 {[%emt 0:00:27]} 32. Kf2 {[%emt 0:00:57]} Kf8 {[%emt 0:01:02]} 33. Be4 {[%emt 0:00:37]} Nc4 {[%emt 0:00:28]} 34. Ke2 {[%emt 0:01:00]} Nb6 {[%emt 0:00:31]} 35. Rd1 {[%emt 0:00:03]} Rf7 {[%emt 0:00:31]} 36. Ke3 {[%emt 0:00:11]} a5 {[%emt 0:00:30]} 37. bxa5 {[%emt 0:00:39]} Nc4+ {[%emt 0:00:00]} 38. Kf2 {[%emt 0:00:23]} Nxa5 {[%emt 0:00:49]} 39. Rb1 {[%emt 0:00:20]} c6 {[%emt 0:00:41]} 40. dxc6 {[%emt 0:00:07]} Bxc6 {[%emt 0:00:01]} 41. Bxc6 {[%emt 0:00:28]} Nxc6 {[%emt 0:00:02]} 42. Rxb5 {[%emt 0:00:07]} Ra7 {[%emt 0:00:45]} 43. Rd5 {[%emt 0:01:14]} Ke7 {[%emt 0:01:12]} 44. Kf3 {[%emt 0:01:03]} Ra3+ {[%emt 0:00:29]} 45. Kg4 {[%emt 0:00:24]} Nb4 {[%emt 0:00:32]} 46. f6+ {[%emt 0:01:13]} Kxf6 {[%emt 0:00:19]} 47. Rxd6+ {[%emt 0:00:03]} Kf7 {[%emt 0:00:17]} 48. Rd7+ {[%emt 0:00:09]} Kf8 {[%emt 0:00:12]} 49. Nh5 {[%emt 0:00:53]} Nc2 {[%emt 0:00:55]} 50. Nxg7 {[%emt 0:00:55]} Ne3+ {[%emt 0:00:05]} 51. Kg5 {[%emt 0:00:25]} Ra6 {[%emt 0:00:29]} 52. f5 {[%emt 0:00:23]} h6+ {[%emt 0:00:06]} 53. Kh5 {[%emt 0:00:19]} Nxg2 {[%emt 0:00:38]} 54. Ne6+ {[%emt 0:00:12]} Ke8 {[%emt 0:00:07]} 55. Rd2 {[%emt 0:00:15]} 1-0

[Event "Lozovatsky Memorial-A 2020"]
[Site "Chelyabinsk"]
[Date "2020.01.19"]
[Round "5.4"]
[White "Kostenko, Petr"]
[Black "Korneev, Oleg"]
[Result "1/2-1/2"]
[ECO "C67"]
[WhiteElo "2433"]
[BlackElo "2513"]
[Annotator "ChessBase"]
[PlyCount "33"]
[EventDate "2020.01.15"]
[EventType "tourn"]
[EventCountry "RUS"]
[SourceTitle "playchess.com"]
[Source "ChessBase"]
[SourceQuality "1"]
[TimeControl "5400+30"]

1. e4 {[%emt 0:01:56]} e5 {[%emt 0:03:40]} 2. Nf3 {[%emt 0:00:44]} Nc6 {[%emt 0:00:04]} 3. Bb5 {[%emt 0:00:13]} Nf6 {[%emt 0:00:04]} 4. O-O {[%emt 0:00:11]} Nxe4 {[%emt 0:00:22]} 5. Re1 {[%emt 0:00:07]} Nd6 {[%emt 0:00:06]} 6. Nxe5 {[%emt 0:00:10]} Be7 {[%emt 0:00:10]} 7. Bf1 {[%emt 0:00:09]} Nxe5 {[%emt 0:00:12]} 8. Rxe5 {[%emt 0:00:05]} O-O {[%emt 0:00:06]} 9. d4 {[%emt 0:00:08]} Bf6 {[%emt 0:00:27]} 10. Re1 {[%emt 0:00:35]} Re8 {[%emt 0:00:08]} 11. Rxe8+ {[%emt 0:00:58]} Nxe8 {[%emt 0:00:07]} 12. c3 {[%emt 0:00:11]} d5 {[%emt 0:00:06]} 13. Bd3 {[%emt 0:00:11]} c6 {[%emt 0:00:28]} 14. Bf4 {[%emt 0:00:06]} g6 {[%emt 0:00:15]} 15. Nd2 {[%emt 0:00:06]} Ng7 {[%emt 0:00:07]} 16. Nf3 {[%emt 0:00:08]} Bf5 {[%emt 0:00:22]} 17. Be5 {[%emt 0:00:20]} 1/2-1/2

[Event "Lozovatsky Memorial-A 2020"]
[Site "Chelyabinsk"]
[Date "2020.01.19"]
[Round "5.5"]
[White "Remizov, Yaroslav"]
[Black "Gutenev, Alexander"]
[Result "1/2-1/2"]
[ECO "B40"]
[WhiteElo "2382"]
[BlackElo "2457"]
[Annotator "ChessBase"]
[PlyCount "53"]
[EventDate "2020.01.15"]
[EventType "tourn"]
[EventCountry "RUS"]
[SourceTitle "playchess.com"]
[Source "ChessBase"]
[SourceQuality "1"]
[TimeControl "5400+30"]

1. e4 {[%emt 0:05:10]} c5 {[%emt 0:00:08]} 2. Nf3 {[%emt 0:00:05]} e6 {[%emt 0:00:28]} 3. d4 {[%emt 0:00:26]} cxd4 {[%emt 0:00:05]} 4. Nxd4 {[%emt 0:00:02]} Nf6 {[%emt 0:00:08]} 5. Nc3 {[%emt 0:00:50]} Nc6 {[%emt 0:00:06]} 6. Ndb5 {[%emt 0:02:21]} Bc5 {[%emt 0:01:09]} 7. Bf4 {[%emt 0:02:59]} O-O {[%emt 0:00:24]} 8. Bc7 {[%emt 0:01:41]} Qe7 {[%emt 0:00:05]} 9. Bd6 {[%emt 0:01:11]} Bxd6 {[%emt 0:00:06]} 10. Qxd6 {[%emt 0:00:18]} Qd8 {[%emt 0:00:06]} 11. Qc7 {[%emt 0:07:33]} d5 {[%emt 0:10:35]} 12. Qxd8 {[%emt 0:11:55]} Rxd8 {[%emt 0:00:29]} 13. exd5 {[%emt 0:00:08]} exd5 {[%emt 0:00:56]} 14. Rd1 {[%emt 0:00:07]} Bf5 {[%emt 0:02:58]} 15. Nc7 {[%emt 0:16:29]} Rac8 {[%emt 0:09:20]} 16. N7xd5 {[%emt 0:07:08]} Nxd5 {[%emt 0:00:41]} 17. Rxd5 {[%emt 0:05:57]} Bxc2 {[%emt 0:09:43]} 18. Bc4 {[%emt 0:05:20]} Ne5 {[%emt 0:19:54]} 19. Rxe5 {[%emt 0:06:44]} Rxc4 {[%emt 0:00:07]} 20. Ke2 {[%emt 0:00:07]} Rcd4 {[%emt 0:02:40]} 21. Rc1 {[%emt 0:02:18]} Rd2+ {[%emt 0:04:22]} 22. Ke1 {[%emt 0:00:12]} a6 {[%emt 0:01:09]} 23. Nd5 {[%emt 0:01:37]} R2xd5 {[%emt 0:01:07]} 24. Rxd5 {[%emt 0:00:07]} Rxd5 {[%emt 0:00:04]} 25. Rxc2 {[%emt 0:00:04]} Kf8 {[%emt 0:00:33]} 26. Rc7 {[%emt 0:00:29]} Ra5 {[%emt 0:04:39]} 27. Rxb7 {[%emt 0:00:37]} 1/2-1/2

[Event "Lozovatsky Memorial-A 2020"]
[Site "Chelyabinsk"]
[Date "2020.01.22"]
[Round "8.1"]
[White "Badelka, Olga"]
[Black "Salemgareev, Tagir"]
[Result "0-1"]
[ECO "A06"]
[WhiteElo "2392"]
[BlackElo "2458"]
[Annotator "RC"]
[PlyCount "98"]
[EventDate "2020.01.15"]
[EventType "tourn"]
[EventCountry "RUS"]
[SourceTitle "playchess.com"]
[Source "ChessBase"]
[SourceQuality "1"]
[TimeControl "5400+30"]

1. Nf3 {[%emt 0:00:00]} d5 {[%emt 0:00:00]} 2. d4 {[%emt 0:02:25]} Bf5 {[%emt 0:07:24]} 3. c4 {[%emt 0:01:16]} e6 {[%emt 0:00:05]} 4. Nc3 {[%emt 0:00:39]} Nf6 {[%emt 0:00:16]} 5. Bg5 {[%emt 0:04:37]} c6 {[%emt 0:19:49]} 6. Qb3 {[%emt 0:11:30]} Qb6 {[%emt 0:00:34]} 7. Bxf6 {[%emt 0:03:17]} gxf6 {[%emt 0:01:34]} 8. Qxb6 {[%emt 0:03:38]} axb6 {[%emt 0:00:06]} 9. cxd5 {[%emt 0:00:12]} exd5 {[%emt 0:12:10]} 10. e3 {[%emt 0:00:26]} Bb4 {[%emt 0:07:00]} 11. Kd2 {[%emt 0:01:03]} Nd7 {[%emt 0:00:19]} 12. Nh4 {[%emt 0:03:40]} Bg6 {[%emt 0:00:46]} 13. Bd3 {[%emt 0:01:13]} b5 {[%emt 0:00:31]} 14. a3 {[%emt 0:07:45]} Bxc3+ {[%emt 0:00:55]} 15. Kxc3 {[%emt 0:00:06]} Nb6 {[%emt 0:00:07]} 16. Nxg6 {[%emt 0:09:39]} fxg6 {[%emt 0:11:13]} 17. g4 {[%emt 0:01:13]} Kf7 {[%emt 0:00:44]} 18. h4 {[%emt 0:01:49]} h5 {[%emt 0:02:36]} 19. g5 {[%emt 0:13:02]} fxg5 {[%emt 0:11:10]} 20. hxg5 {[%emt 0:00:04]} Nc4 {[%emt 0:00:39]} 21. Rh4 {[%emt 0:06:59]} Kg7 {[%emt 0:06:36]} 22. e4 {[%emt 0:07:40]} Rhf8 {[%emt 0:00:44]} 23. exd5 {[%emt 0:00:41]} cxd5 {[%emt 0:00:12]} 24. f4 {[%emt 0:00:53]} Rfc8 {[%emt 0:04:09]} 25. Kb4 {[%emt 0:03:54]} Ra4+ {[%emt 0:02:22]} 26. Kxb5 {[%emt 0:00:16]} Nxb2 {[%emt 0:01:12]} 27. f5 {[%emt 0:07:36]} Ra6 {[%emt 0:06:34]} 28. f6+ {[%emt 0:00:17]} Kf7 {[%emt 0:00:05]} 29. Bf1 {[%emt 0:00:46]} Na4 {[%emt 0:01:22]} 30. Kb4 {[%emt 0:03:31]} Rb6+ {[%emt 0:00:28]} 31. Bb5 {[%emt 0:00:04]} Nc3 {[%emt 0:00:18]} 32. a4 {[%emt 0:00:11]} Nxb5 {[%emt 0:00:53]} 33. axb5 {[%emt 0:00:06]} Rc4+ {[%emt 0:00:02]} 34. Ka5 {[%emt 0:00:32]} Re6 {[%emt 0:00:05]} 35. Rf4 {[%emt 0:04:55]} Rc2 {[%emt 0:02:39]} 36. Kb4 {[%emt 0:00:33]} Rc4+ {[%emt 0:00:27]} 37. Ka5 {[%emt 0:00:24]} Rc2 {[%emt 0:01:31]} 38. Kb4 {[%emt 0:00:03]} Rc4+ {[%emt 0:00:21]} 39. Ka5 {[%emt 0:00:01]} Rc7 {[%emt 0:00:44]} 40. Kb4 {[%emt 0:00:52]} b6 {[%emt 0:00:35]} 41. Rf3 {[%emt 0:01:28]} Re4 {[%emt 0:00:28]} 42. Rd3 {[%emt 0:00:04]} Rg4 {[%emt 0:00:20]} 43. Ra6 {[%emt 0:00:33]} Rb7 {[%emt 0:00:28]} 44. Rc3 {[%emt 0:01:28]} Rxg5 {[%emt 0:00:19]} 45. Rc6 {[%emt 0:00:27]} h4 {[%emt 0:00:14]} 46. Raxb6 {[%emt 0:00:20]} Rxb6 {[%emt 0:00:12]} 47. Rxb6 {[%emt 0:00:01]} h3 {[%emt 0:00:06]} 48. Rb7+ {[%emt 0:00:44]} Kxf6 {[%emt 0:00:06]} 49. Rh7 {[%emt 0:00:04]} Rh5 {[%emt 0:00:07]} 0-1

[Event "Lozovatsky Memorial-A 2020"]
[Site "Chelyabinsk"]
[Date "2020.01.22"]
[Round "8.6"]
[White "Drygalov, Andrey"]
[Black "Korneev, Oleg"]
[Result "1-0"]
[ECO "C54"]
[WhiteElo "2492"]
[BlackElo "2513"]
[Annotator "ChessBase"]
[PlyCount "121"]
[EventDate "2020.01.15"]
[EventType "tourn"]
[EventCountry "RUS"]
[SourceTitle "playchess.com"]
[Source "ChessBase"]
[SourceQuality "1"]
[TimeControl "5400+30"]

1. e4 {[%emt 0:00:07]} e5 {[%emt 0:06:42]} 2. Nf3 {[%emt 0:00:04]} Nc6 {[%emt 0:00:04]} 3. Bc4 {[%emt 0:00:03]} Bc5 {[%emt 0:00:05]} 4. c3 {[%emt 0:00:05]} Nf6 {[%emt 0:00:10]} 5. d3 {[%emt 0:00:02]} a6 {[%emt 0:00:16]} 6. O-O {[%emt 0:00:09]} Ba7 {[%emt 0:00:03]} 7. a4 {[%emt 0:00:15]} d6 {[%emt 0:00:38]} 8. Nbd2 {[%emt 0:00:13]} O-O {[%emt 0:00:12]} 9. h3 {[%emt 0:00:06]} Kh8 {[%emt 0:01:04]} 10. b4 {[%emt 0:00:06]} Be6 {[%emt 0:11:42]} 11. Bxe6 {[%emt 0:01:10]} fxe6 {[%emt 0:01:01]} 12. Re1 {[%emt 0:00:54]} Ne7 {[%emt 0:13:13]} 13. Nf1 {[%emt 0:01:31]} Ng6 {[%emt 0:00:49]} 14. Ng3 {[%emt 0:01:37]} d5 {[%emt 0:17:58]} 15. c4 {[%emt 0:09:13]} dxc4 {[%emt 0:10:59]} 16. dxc4 {[%emt 0:00:17]} Qe7 {[%emt 0:00:10]} 17. Qb3 {[%emt 0:10:23]} Rad8 {[%emt 0:11:35]} 18. a5 {[%emt 0:24:52]} Bd4 {[%emt 0:05:15]} 19. Rb1 {[%emt 0:05:40]} h6 {[%emt 0:04:46]} 20. c5 {[%emt 0:05:14]} c6 {[%emt 0:01:39]} 21. Bb2 {[%emt 0:05:11]} Nh7 {[%emt 0:03:15]} 22. Bxd4 {[%emt 0:18:04]} exd4 {[%emt 0:00:04]} 23. Rbd1 {[%emt 0:00:18]} e5 {[%emt 0:01:57]} 24. Nf5 {[%emt 0:00:04]} Qf6 {[%emt 0:00:47]} 25. Nh2 {[%emt 0:02:28]} Rde8 {[%emt 0:05:14]} 26. Qg3 {[%emt 0:02:41]} h5 {[%emt 0:02:37]} 27. Nf3 {[%emt 0:05:15]} Nf4 {[%emt 0:00:01]} 28. h4 {[%emt 0:00:27]} g6 {[%emt 0:00:52]} 29. Nd6 {[%emt 0:00:05]} Re7 {[%emt 0:00:11]} 30. Nc4 {[%emt 0:03:54]} Rg8 {[%emt 0:00:06]} 31. Ng5 {[%emt 0:00:11]} Nxg5 {[%emt 0:01:10]} 32. Qxg5 {[%emt 0:00:03]} Qxg5 {[%emt 0:00:52]} 33. hxg5 {[%emt 0:00:08]} Kg7 {[%emt 0:00:23]} 34. Nd2 {[%emt 0:04:59]} Nd3 {[%emt 0:00:28]} 35. Re2 {[%emt 0:00:03]} Nf4 {[%emt 0:00:36]} 36. Ree1 {[%emt 0:00:05]} Nd3 {[%emt 0:00:33]} 37. Re2 {[%emt 0:00:05]} Nf4 {[%emt 0:00:30]} 38. Ree1 {[%emt 0:00:05]} Rf8 {[%emt 0:00:28]} 39. Nc4 {[%emt 0:00:55]} h4 {[%emt 0:00:12]} 40. Kh2 {[%emt 0:02:22]} Ne6 {[%emt 0:00:47]} 41. Nxe5 {[%emt 0:00:22]} Rxf2 {[%emt 0:00:34]} 42. Nf3 {[%emt 0:00:19]} Nf4 {[%emt 0:00:27]} 43. Nxh4 {[%emt 0:00:17]} Ne6 {[%emt 0:00:33]} 44. Nf3 {[%emt 0:00:13]} Rd7 {[%emt 0:00:29]} 45. Kg3 {[%emt 0:00:54]} Rb2 {[%emt 0:00:05]} 46. Rb1 {[%emt 0:00:11]} Ra2 {[%emt 0:00:19]} 47. Rb3 {[%emt 0:00:51]} d3 {[%emt 0:00:34]} 48. Rd1 {[%emt 0:00:34]} d2 {[%emt 0:00:48]} 49. Kf2 {[%emt 0:00:10]} Nf4 {[%emt 0:00:41]} 50. Rxd2 {[%emt 0:00:55]} Rdxd2+ {[%emt 0:00:15]} 51. Nxd2 {[%emt 0:00:03]} Rxd2+ {[%emt 0:00:44]} 52. Ke3 {[%emt 0:00:04]} Rxg2 {[%emt 0:00:13]} 53. Kxf4 {[%emt 0:00:03]} Kf8 {[%emt 0:00:53]} 54. Rd3 {[%emt 0:00:25]} Rb2 {[%emt 0:00:21]} 55. Ke5 {[%emt 0:01:38]} Ke7 {[%emt 0:00:21]} 56. Rd6 {[%emt 0:00:07]} Rxb4 {[%emt 0:00:06]} 57. Rxg6 {[%emt 0:00:04]} Rc4 {[%emt 0:00:24]} 58. Rg7+ {[%emt 0:00:12]} Kd8 {[%emt 0:01:18]} 59. Rxb7 {[%emt 0:00:06]} Kc8 {[%emt 0:00:09]} 60. Rf7 {[%emt 0:00:14]} Rxc5+ 61. Kf6 {[%emt 0:00:10]} 1-0